bitfinex/quotes_ETHUSD_20260302
["timestamp","ask_amount","ask_price","bid_price","bid_amount"]
[1772427459681,2.79480469,1973.2,1972.7,2.68080445]
[1772427461090,2.79480469,1973.2,1972.6,0.0011]
[1772427461806,2.79480469,1973.0,1972.6,2.68190445]
[1772427462012,2.79480469,1973.0,1972.6,0.0011]
[1772427464078,2.79480469,1972.8,1972.6,0.0011]
[1772427466810,4.06204634,1972.8,1972.6,0.0011]
[1772427467111,2.79480469,1972.7,1972.6,0.0011]
[1772427469581,2.79480469,1972.7,1972.5,0.0011]
[1772427469582,2.83197589,1972.7,1972.5,0.0011]
[1772427469782,2.83197589,1972.6,1972.5,0.0011]
[1772427470816,4.54014842,1972.6,1972.5,0.0011]
[1772427471114,2.83197589,1972.5,1972.3,0.0011]
[1772427472114,1.70817253,1972.6,1972.0,0.00263886]
[1772427472115,2.83197589,1972.3,1972.0,0.00263886]
[1772427472288,2.83197589,1972.2,1972.0,0.00263886]
[1772427474133,2.83197589,1972.1,1972.0,0.00263886]
[1772427477894,2.83197589,1972.2,1972.0,0.00263886]
[1772427482032,2.83197589,1972.1,1971.8,0.0011]
[1772427482238,2.83197589,1971.9,1971.8,0.0011]
[1772427482727,2.83197589,1972.1,1971.8,0.0011]
[1772427484757,2.83197589,1972.2,1971.8,2.74329214]
[1772427485022,9.17197589,1972.4,1971.8,2.74329214]
[1772427485228,11.61897589,1972.4,1971.8,2.74329214]
[1772427485411,2.83197589,1972.3,1971.8,2.74329214]
[1772427486702,2.83197589,1972.3,1971.9,2.74329214]
[1772427487028,0.001,1972.1,1971.9,2.74329214]
[1772427487931,2.83197589,1971.9,1971.6,0.0011]
[1772427488415,3.27278555,1971.8,1971.6,0.0011]
[1772427489025,2.83197589,1971.7,1971.6,0.0011]
[1772427493132,2.83197589,1971.6,1971.5,0.0011]
[1772427494230,2.76087061,1971.7,1971.5,0.0011]
[1772427494822,5.21787061,1971.9,1971.5,2.69186556]
[1772427495344,0.29526288,1972.1,1971.5,2.98612844]
[1772427495345,6.48658454,1972.1,1971.5,2.98612844]
[1772427495644,6.48658454,1972.1,1971.5,2.69186556]
[1772427496444,2.76087061,1972.0,1971.6,2.69076556]
[1772427496852,2.76187061,1972.1,1971.6,2.98502844]
[1772427497854,2.76187061,1972.1,1971.6,2.69076556]
[1772427498365,0.001,1972.1,1971.6,2.98502844]
[1772427498533,0.001,1972.1,1971.7,1.26794137]
[1772427498730,0.001,1972.1,1971.8,2.86178298]
[1772427499549,3.9110816,1972.5,1971.8,0.29426288]
[1772427499724,3.9110816,1972.5,1971.9,2.86178298]
[1772427500226,3.9110816,1972.5,1971.9,3.15604586]
[1772427500417,3.9110816,1972.5,1972.0,0.29426288]
[1772427500418,0.001,1972.5,1972.0,0.29426288]
[1772427500623,0.001,1972.5,1972.2,2.86178298]
[1772427501441,2.93688835,1972.4,1972.0,2.86178298]
[1772427501742,2.93688835,1972.3,1972.0,2.86178298]
[1772427502060,2.64262547,1972.3,1972.0,2.86178298]
[1772427504639,2.64262547,1972.3,1972.0,4.12952958]
[1772427505957,2.64262547,1972.3,1972.0,2.86178298]
[1772427507657,2.64262547,1972.4,1972.1,2.86178298]
[1772427507867,0.001,1972.5,1972.1,2.86178298]
[1772427509457,0.001,1972.5,1972.2,2.86178298]
[1772427510363,0.001,1972.4,1972.2,2.86178298]
[1772427510771,3.90986833,1972.8,1972.4,2.86178298]
[1772427510934,2.64262547,1972.8,1972.4,2.86178298]
[1772427511134,2.93688835,1972.8,1972.4,2.86178298]
[1772427513551,0.29426288,1972.6,1972.3,2.86178298]
[1772427513869,2.93688835,1972.6,1972.3,2.86178298]
[1772427514768,2.64262547,1972.6,1972.3,2.86178298]
[1772427516272,2.64262547,1972.6,1972.3,4.12928986]
[1772427516445,2.64262547,1972.6,1972.3,2.86178298]
[1772427517267,2.64262547,1972.5,1972.1,1.26763511]
[1772427517566,2.64262547,1972.5,1972.2,2.86178298]
[1772427520642,2.64262547,1972.5,1972.2,4.12940234]
[1772427520971,3.9099884,1972.6,1972.2,4.12940234]
[1772427521160,2.64262547,1972.6,1972.2,4.12940234]
[1772427522671,2.64262547,1972.6,1972.3,2.86178298]
[1772427523185,0.29426288,1972.8,1972.3,2.86288298]
[1772427523387,0.29426288,1972.8,1972.4,2.86178298]
[1772427523388,2.64262547,1972.8,1972.4,2.86178298]
[1772427523598,3.90986377,1972.8,1972.4,2.86178298]
[1772427523741,2.64262547,1972.8,1972.4,2.86178298]
[1772427523937,2.64262547,1972.7,1972.4,2.86178298]
[1772427524144,2.64262547,1972.7,1972.3,0.0011]
[1772427524466,1.56150273,1972.8,1972.3,0.0011]
[1772427524467,2.64262547,1972.5,1972.3,0.0011]
[1772427526664,2.64262547,1972.4,1972.3,0.0011]
[1772427529584,6.4202047,1972.6,1972.3,0.0011]
[1772427529753,6.71425738,1972.6,1972.3,0.0011]
[1772427530082,5.44687433,1972.6,1972.3,0.0011]
[1772427530251,6.71424575,1972.6,1972.3,0.0011]
[1772427530852,5.44687433,1972.6,1972.3,0.0011]
[1772427531882,6.71425448,1972.6,1972.3,0.0011]
[1772427532082,2.69382165,1972.8,1972.3,2.71335969]
[1772427532384,2.98787433,1972.8,1972.3,2.71335969]
[1772427532552,2.69382165,1972.5,1972.3,0.0011]
[1772427532755,2.98787433,1972.4,1972.2,0.0011]
[1772427535370,2.69382165,1972.3,1972.2,0.0011]
[1772427537080,0.29405268,1972.4,1972.2,0.0011]
[1772427537081,2.98787433,1972.4,1972.2,0.0011]
[1772427537252,2.69482165,1972.5,1972.2,2.71335969]
[1772427537456,0.001,1972.5,1972.2,2.71335969]
[1772427537653,4.02334242,1972.8,1972.3,2.71225969]
[1772427538076,6.71716407,1972.8,1972.3,2.71225969]
[1772427538780,2.69382165,1972.7,1972.3,3.97978908]
[1772427540094,2.98787433,1972.7,1972.3,3.97978908]
[1772427540891,5.15582165,1972.8,1972.4,2.71225969]
[1772427541084,2.69382165,1972.7,1972.4,2.71225969]
[1772427542002,2.69382165,1972.7,1972.4,3.97973375]
[1772427542592,2.69382165,1972.8,1972.4,3.97974405]
[1772427542767,2.69382165,1972.8,1972.5,2.71225969]
[1772427542966,4.02522407,1972.9,1972.5,2.71225969]
[1772427543184,6.71904572,1972.9,1972.5,2.71225969]
[1772427543665,6.71904495,1972.9,1972.5,2.71225969]
[1772427543865,6.71904532,1972.9,1972.5,2.71225969]
[1772427545395,2.69382165,1972.9,1972.6,2.71225969]
[1772427547402,2.69382165,1972.9,1972.6,2.71335969]
[1772427547601,0.001,1972.8,1972.6,2.71335969]
[1772427548712,2.98887433,1972.8,1972.6,0.0011]
[1772427550517,4.25611041,1972.8,1972.6,0.0011]
[1772427551520,2.69382165,1972.7,1972.5,0.0011]
[1772427551814,2.98787433,1972.6,1972.5,0.0011]
[1772427552114,2.98787433,1972.6,1972.3,2.71335969]
[1772427552115,2.98787433,1972.6,1972.3,0.0011]
[1772427552485,2.69382165,1972.3,1972.0,2.71335969]
[1772427553087,2.69382165,1972.5,1972.1,2.71225969]
[1772427553291,5.17182165,1972.5,1972.1,2.71225969]
[1772427554515,6.43926192,1972.5,1972.1,2.71225969]
[1772427554817,5.17282165,1972.5,1972.2,2.78796385]
[1772427555190,5.17282165,1972.5,1972.1,2.78796385]
[1772427555191,2.79533623,1972.4,1972.1,2.78796385]
[1772427559234,2.65890024,1972.3,1972.0,0.0011]
[1772427559607,2.65890024,1972.3,1972.2,0.0011]
[1772427560925,6.40537826,1972.5,1972.2,0.0011]
[1772427561528,2.484,1972.4,1972.2,2.75156881]
[1772427562926,2.484,1972.4,1972.0,0.0011]
[1772427562927,2.65890024,1972.3,1972.0,0.0011]
[1772427563130,3.75149163,1972.4,1971.7,0.0011]
[1772427563131,2.65890024,1972.0,1971.7,0.0011]
[1772427563723,2.65890024,1971.8,1971.7,0.0011]
[1772427565328,1.26785071,1971.9,1971.7,2.75156881]
[1772427565525,3.92650056,1972.3,1971.7,2.75156881]
[1772427566715,2.65890024,1972.3,1971.7,2.75156881]
[1772427567461,2.65890024,1972.3,1971.9,2.75046881]
[1772427567931,3.9264671,1972.3,1971.9,2.75046881]
[1772427570011,2.65890024,1972.2,1971.9,2.75046881]
[1772427570824,1.26756686,1972.3,1971.9,2.75046881]
[1772427571025,10.21587104,1972.4,1972.0,2.75046881]
[1772427571026,6.41343365,1972.4,1972.0,2.75046881]
[1772427571335,3.92639956,1972.4,1972.0,2.75046881]
[1772427571539,2.65890024,1972.3,1972.0,2.75156881]
[1772427571736,2.65990024,1972.2,1972.0,0.0011]
[1772427572036,0.001,1972.2,1972.0,2.75156881]
[1772427573923,2.65990024,1972.2,1972.0,0.0011]
[1772427578151,0.001,1972.2,1972.0,2.75156881]
[1772427579055,2.65890024,1972.1,1971.9,0.0011]
[1772427580245,2.65890024,1972.1,1971.7,0.0011]
[1772427580246,2.65890024,1971.9,1971.7,0.0011]
[1772427580547,1.26774847,1972.0,1971.7,0.0011]
[1772427580721,1.26774847,1972.0,1971.7,2.75156881]
[1772427581426,3.92664871,1972.0,1971.7,2.75156881]
[1772427583468,0.001,1972.2,1971.7,2.75156881]
[1772427583625,0.001,1972.2,1971.8,2.75156881]
[1772427583947,0.001,1972.1,1971.8,2.75156881]
[1772427585541,0.001,1972.1,1971.8,4.01940854]
[1772427586760,0.001,1972.1,1971.8,2.75156881]
[1772427587133,0.001,1972.1,1971.8,4.01944255]
[1772427590259,2.71803797,1972.1,1971.8,4.01944255]
[1772427591982,5.34,1972.8,1972.2,2.56178645]
[1772427592134,2.50433979,1974.1,1972.4,2.56178645]
[1772427592135,0.001,1973.4,1972.4,2.56178645]
[1772427592335,0.001,1973.4,1972.6,2.56178645]
[1772427592336,7.835,1973.3,1972.6,2.56178645]
[1772427592543,2.71703797,1973.7,1972.8,2.56178645]
[1772427592766,7.835,1973.4,1972.8,2.56178645]
[1772427593174,0.001,1973.8,1972.8,2.56178645]
[1772427593685,2.71803797,1973.8,1972.8,2.56178645]
[1772427593880,0.001,1973.8,1972.8,2.56178645]
[1772427594372,0.001,1973.8,1973.0,2.56178645]
[1772427595850,0.001,1973.7,1973.0,2.56178645]
[1772427596553,0.001,1973.7,1973.1,1.26704171]
[1772427596759,0.001,1973.7,1973.2,2.56178645]
[1772427597157,0.00153886,1974.0,1973.2,2.56178645]
[1772427597969,2.71703797,1974.4,1973.2,2.56178645]
[1772427598747,2.71703797,1974.4,1973.4,2.56178645]
[1772427600194,2.71703797,1974.3,1973.4,2.56178645]
[1772427600356,2.71703797,1974.3,1973.6,2.56178645]
[1772427601085,0.001,1974.9,1973.7,1.26665653]
[1772427601282,2.71703797,1974.6,1973.8,2.56178645]
[1772427601591,2.71703797,1974.6,1974.0,2.56178645]
[1772427603458,2.71703797,1974.6,1974.1,1.26639987]
[1772427604167,2.71703797,1974.6,1974.1,3.82818632]
[1772427605183,2.71703797,1974.6,1974.1,1.26639987]
[1772427605681,2.71703797,1974.5,1973.9,3.53149066]
[1772427607286,2.71703797,1974.5,1974.0,2.56178645]
[1772427607581,2.71903797,1974.5,1974.0,2.56178645]
[1772427607760,2.71903797,1974.5,1974.1,1.26639987]
[1772427607961,2.71903797,1974.5,1974.0,1.2664148]
[1772427608161,2.71703797,1974.4,1973.9,1.26747909]
[1772427610190,0.002,1974.5,1974.0,2.56178645]
[1772427610365,2.71903797,1974.5,1974.0,2.56178645]
[1772427611189,0.002,1974.5,1974.0,2.56178645]
[1772427611884,0.002,1974.5,1974.2,2.56178645]
[1772427613789,0.002,1974.5,1974.1,2.265]
[1772427613998,2.71903797,1974.5,1973.9,0.001]
[1772427614569,2.71903797,1974.5,1973.6,5.06777534]
[1772427614570,2.82926151,1974.4,1973.6,0.001]
[1772427615004,2.82926151,1974.4,1973.6,1.26770254]
[1772427615505,2.82926151,1974.0,1973.1,2.94113921]
[1772427615806,2.82926151,1974.0,1973.0,2.26553886]
[1772427615807,1.26652819,1973.9,1973.0,6.47375304]
[1772427615972,2.82926151,1973.8,1973.0,6.47375304]
[1772427618079,2.86883744,1974.4,1973.1,2.78570764]
[1772427618301,2.86883744,1974.3,1973.1,2.78570764]
[1772427618702,2.86883744,1974.1,1973.2,2.264]
[1772427619005,2.86883744,1974.1,1973.2,5.04970764]
[1772427619881,4.20294573,1974.4,1973.2,5.04970764]
[1772427619882,2.86883744,1973.9,1973.2,5.04970764]
[1772427620295,2.86883744,1973.7,1973.2,6.31664929]
[1772427621190,2.86883744,1973.9,1973.3,2.78570764]
[1772427621379,2.86883744,1974.1,1973.3,2.78570764]
[1772427622916,4.13530042,1974.1,1973.5,2.78570764]
[1772427623204,2.86883744,1974.0,1973.4,4.05255673]
[1772427623398,2.86883744,1974.0,1973.4,1.26684909]
[1772427624205,4.13522628,1974.2,1973.5,2.78570764]
[1772427624406,5.06486359,1974.4,1973.5,2.78570764]
[1772427624615,2.87083744,1974.5,1973.5,2.78570764]
[1772427624821,2.86883744,1974.4,1973.5,2.78570764]
[1772427625123,4.13505332,1974.4,1973.7,2.78570764]
[1772427626201,2.86883744,1974.3,1973.7,2.78570764]
[1772427627024,2.86883744,1974.1,1973.5,5.04570764]
[1772427629223,4.13530147,1974.0,1973.5,5.04570764]
[1772427629726,4.13530147,1974.0,1973.5,6.31249061]
[1772427629927,4.13530147,1974.0,1973.5,5.04570764]
[1772427630917,2.86883744,1973.9,1973.5,5.04570764]
[1772427631228,4.13542979,1973.8,1973.3,4.05257103]
[1772427631524,4.13542979,1973.8,1973.1,4.0536906]
[1772427631525,2.86883744,1973.7,1973.1,4.0536906]
[1772427632609,2.86883744,1973.5,1973.1,0.001]
[1772427633205,1.26684909,1973.4,1973.1,0.001]
[1772427633411,4.13568653,1973.4,1973.1,0.001]
[1772427635229,2.86883744,1973.3,1973.0,0.00253886]
[1772427635928,4.13567625,1973.5,1973.0,0.00253886]
[1772427636100,4.13567625,1973.5,1973.0,2.7882465]
[1772427639100,2.86883744,1973.4,1973.0,0.00253886]
[1772427640124,4.13575073,1973.3,1973.0,0.00253886]
[1772427642325,2.86883744,1973.2,1973.0,0.00253886]
[1772427643520,2.86883744,1973.0,1972.3,2.78570764]
[1772427644411,1.26717015,1972.9,1972.5,2.78570764]
[1772427644616,2.86883744,1972.9,1972.5,2.78570764]
[1772427645419,2.86883744,1973.0,1972.5,2.78570764]
[1772427645819,2.86883744,1973.0,1972.8,0.001]
[1772427646334,1.26706967,1973.1,1972.8,0.001]
[1772427646739,4.13585451,1973.2,1972.8,0.001]
[1772427646942,4.13581607,1973.2,1972.8,0.001]
[1772427647142,1.26697863,1973.2,1972.8,0.001]
[1772427647640,5.66029434,1973.2,1972.8,0.001]
[1772427648228,2.92494657,1973.1,1972.8,0.001]
[1772427648941,4.19204208,1973.1,1972.8,0.001]
[1772427649636,4.19199495,1973.1,1972.8,0.001]
[1772427650341,4.19199495,1973.1,1972.2,5.07046763]
[1772427650342,4.40510742,1972.9,1971.9,0.0011]
[1772427650540,1.46836914,1972.1,1971.7,0.0011]
[1772427650840,1.26753786,1972.4,1971.8,2.93313223]
[1772427651041,3.0252358,1972.3,1971.8,2.93313223]
[1772427651215,1.26747448,1972.5,1971.9,2.93203223]
[1772427651409,4.19235121,1972.6,1971.9,2.93203223]
[1772427651612,3.02216037,1972.5,1971.9,2.93203223]
[1772427652242,4.19235121,1972.6,1971.9,2.93203223]
[1772427652538,5.66072035,1972.6,1971.9,2.93203223]
[1772427653110,4.19235121,1972.6,1972.0,2.93203223]
[1772427657580,4.19235121,1972.6,1972.1,0.0011]
[1772427658256,2.92494657,1972.1,1971.8,0.0011]
[1772427658554,4.39331571,1972.0,1971.7,0.0011]
[1772427659122,2.92494657,1971.9,1971.7,0.0011]
[1772427660142,1.26787706,1971.8,1971.7,0.0011]
[1772427662075,4.19280853,1971.9,1971.7,0.0011]
[1772427662268,2.92494657,1972.3,1971.7,2.93313223]
[1772427662576,3.02193292,1972.2,1971.7,2.93313223]
[1772427662941,5.94687949,1972.2,1971.7,2.93313223]
[1772427663273,3.02193292,1972.1,1971.7,2.93313223]
[1772427664568,1.26774847,1972.0,1971.6,0.0011]
[1772427664757,1.26774847,1972.0,1971.3,0.0011]
[1772427665102,4.35693687,1972.0,1971.4,0.00125518]
[1772427665273,3.0891884,1971.5,1970.6,0.00125518]
[1772427665472,4.55755754,1971.1,1970.4,0.00125518]
[1772427665646,3.0891884,1971.0,1970.4,0.00125518]
[1772427666578,3.0891884,1971.0,1970.3,0.12157777]
[1772427667281,1.26845603,1970.9,1970.3,0.12157777]
[1772427667464,1.26845603,1970.9,1970.3,1.39040118]
[1772427667781,1.26845603,1970.9,1969.8,2.37150644]
[1772427667782,1.46836914,1970.6,1969.8,2.37150644]
[1772427668074,6.02655427,1970.8,1969.5,1.26932108]
[1772427668075,4.55818513,1970.2,1969.5,1.26932108]
[1772427668644,3.08981599,1970.2,1969.5,1.39341652]
[1772427669048,2.481,1970.5,1968.2,5.335]
[1772427669049,3.08981599,1969.5,1968.2,5.335]
[1772427669247,3.08981599,1969.5,1967.8,3.41699406]
[1772427669248,1.46836914,1968.8,1968.0,2.0041053]
[1772427669455,4.55818513,1968.8,1968.0,1.50914646]
[1772427669655,3.08981599,1968.8,1968.0,1.50914646]
[1772427670267,3.08981599,1969.1,1968.1,2.30457143]
[1772427671278,7.68219244,1969.8,1968.4,1.81534459]
[1772427671279,2.92494657,1969.7,1968.4,1.81534459]
[1772427671580,1.46836914,1969.3,1968.4,1.81534459]
[1772427671750,4.39331571,1969.5,1968.4,1.81534459]
[1772427671751,2.92494657,1969.5,1968.4,1.81534459]
[1772427672876,4.39331571,1969.2,1968.3,1.27013158]
[1772427673386,4.39331571,1969.2,1968.2,5.08052634]
[1772427673961,2.92494657,1969.1,1968.2,5.08052634]
[1772427674177,2.92494657,1969.1,1968.2,7.35752634]
[1772427675259,1.54490799,1969.4,1968.2,7.35752634]
[1772427675450,2.60545836,1969.8,1968.3,0.25239224]
[1772427675646,1.54644685,1970.0,1968.3,0.25239224]
[1772427677683,1.54644685,1970.0,1968.5,0.25239224]
[1772427678188,0.772454,1970.4,1968.5,0.25239224]
[1772427678480,0.772454,1970.4,1969.0,0.00153886]
[1772427678682,0.772454,1970.4,1969.1,2.272]
[1772427679888,0.772454,1970.4,1969.2,1.26955108]
[1772427680055,0.48727408,1970.7,1969.3,0.227546]
[1772427680657,0.48727408,1970.7,1969.9,2.06153392]
[1772427680887,0.48727408,1970.7,1969.8,0.821]
[1772427681084,0.48881294,1971.0,1970.1,2.06153392]
[1772427681260,0.48881294,1971.0,1969.9,2.06153392]
[1772427681462,0.48881294,1971.0,1970.1,2.06153392]
[1772427681892,0.48881294,1971.0,1970.4,1.26877791]
[1772427682062,0.48881294,1971.0,1970.5,2.06153392]
[1772427682063,0.00153886,1971.0,1970.5,2.06153392]
[1772427682385,0.00153886,1971.0,1970.4,1.26877791]
[1772427682588,0.48727408,1970.9,1970.2,5.07511165]
[1772427682785,0.48727408,1970.8,1969.7,0.226546]
[1772427682973,0.48727408,1970.7,1969.6,2.06153392]
[1772427684167,0.48727408,1970.7,1969.7,1.26922881]
[1772427684366,0.48727408,1970.6,1969.7,1.26922881]
[1772427686278,0.48727408,1970.5,1969.7,1.26922881]
[1772427687188,0.48727408,1970.8,1969.7,1.49577481]
[1772427687367,0.48727408,1970.8,1970.2,2.06153392]
[1772427687572,0.48727408,1970.8,1970.0,2.06153392]
[1772427687899,0.00153886,1971.0,1970.4,2.06153392]
[1772427688066,0.48727408,1971.4,1970.4,4.32253392]
[1772427688398,0.48727408,1971.4,1970.5,1.76260709]
[1772427689198,1.75522005,1971.7,1970.6,0.49389357]
[1772427689619,0.48727408,1971.6,1970.6,0.49389357]
[1772427690495,0.48727408,1971.6,1970.7,1.26858476]
[1772427690697,0.48727408,1971.5,1970.7,1.26858476]
[1772427691396,0.001,1971.8,1970.9,2.06153392]
[1772427691397,1.75615504,1971.8,1970.9,2.06153392]
[1772427691604,0.48827408,1971.8,1970.8,0.49389357]
[1772427691798,0.48827408,1971.8,1970.9,2.06153392]
[1772427691977,1.75615859,1971.8,1970.9,2.06153392]
[1772427692180,1.75615859,1971.8,1970.8,0.49389357]
[1772427692394,0.48827408,1971.8,1970.9,1.26845603]
[1772427692786,1.75615765,1971.8,1970.9,1.26845603]
[1772427693692,0.48727408,1971.7,1970.9,1.26845603]
[1772427694202,0.001,1971.7,1971.1,2.55542749]
[1772427694386,0.001,1971.7,1971.3,1.26819865]
[1772427696421,0.00153886,1972.0,1971.6,1.26800568]
[1772427698506,0.00153886,1972.0,1971.5,5.07202272]
[1772427698507,0.00153886,1972.0,1971.4,1.26813432]
[1772427700806,0.00153886,1972.0,1971.5,0.49389357]
[1772427703024,0.00153886,1972.0,1971.6,1.26800568]
[1772427705300,0.00153886,1972.0,1971.7,4.31653392]
[1772427705512,0.48727408,1972.4,1971.7,4.81042749]
[1772427705914,0.001,1971.9,1971.7,4.81042749]
[1772427706130,0.48727408,1972.1,1971.5,1.26804445]
[1772427706300,0.48727408,1972.1,1971.5,3.52304445]
[1772427707002,1.26774847,1972.0,1971.5,3.52306666]
[1772427707202,0.47489669,1972.0,1971.5,3.52306666]
[1772427709330,1.26736656,1972.6,1971.7,0.46963819]
[1772427709504,0.47489669,1972.5,1971.7,0.46963819]
[1772427711223,0.47489669,1972.5,1971.8,1.26787706]
[1772427711224,1.74235662,1972.5,1971.8,1.26787706]
[1772427711703,0.47489669,1972.5,1971.8,1.26787706]
[1772427712031,0.47489669,1972.5,1971.8,3.79904917]
[1772427712229,0.47489669,1972.5,1971.8,1.73751525]
[1772427712738,0.47489669,1972.5,1971.9,0.46963819]
[1772427713412,0.47489669,1972.5,1972.0,1.26774847]
[1772427713811,0.47489669,1972.7,1972.0,3.98738666]
[1772427714133,1.74209505,1972.9,1972.1,0.46963819]
[1772427714543,0.47489669,1972.8,1972.1,0.46963819]
[1772427716244,1.74213974,1972.8,1972.2,1.26761991]
[1772427717956,1.74213974,1972.8,1972.2,1.7372581]
[1772427718253,0.00253886,1973.0,1972.1,5.07047966]
[1772427718254,0.00253886,1973.0,1972.5,1.26742712]
[1772427718617,0.00253886,1973.0,1972.5,3.98406531]
[1772427719408,0.00253886,1973.0,1972.6,0.46963819]
[1772427720525,0.00253886,1973.0,1972.7,1.26729862]
[1772427720841,0.00253886,1973.0,1972.6,5.53907176]
[1772427720842,0.00253886,1973.0,1972.6,1.26731167]
[1772427722127,0.47743555,1973.0,1972.2,2.247]
[1772427722552,0.47489669,1972.6,1972.2,2.247]
[1772427723668,0.47489669,1972.6,1971.9,1.26776248]
[1772427724157,0.43296027,1972.6,1971.9,1.26776248]
[1772427724357,0.43296027,1972.6,1971.8,3.98349886]
[1772427724561,1.26755564,1972.3,1971.8,3.51386067]
[1772427724763,1.26755564,1972.3,1971.6,0.47073819]
[1772427724764,0.47489669,1972.2,1971.6,0.0011]
[1772427724941,0.47489669,1972.2,1971.6,1.26910363]
[1772427725844,0.47489669,1972.2,1971.6,0.0011]
[1772427726057,0.47489669,1972.0,1971.6,1.26910478]
[1772427726554,0.47489669,1972.0,1971.6,0.0011]
[1772427727663,3.50405837,1971.9,1971.6,0.0011]
[1772427727861,0.47489669,1971.8,1971.6,0.0011]
[1772427730052,0.47489669,1971.8,1971.7,0.0011]
[1772427730247,1.74277375,1971.8,1971.7,0.0011]
[1772427730469,0.47489669,1971.8,1971.7,0.0011]
[1772427731169,1.74277375,1971.8,1971.7,0.0011]
[1772427731363,0.47489669,1971.8,1971.7,0.0011]
[1772427731564,1.74277375,1971.8,1971.7,0.0011]
[1772427732360,0.47489669,1971.8,1971.7,0.0011]
[1772427736181,1.73887996,1972.1,1971.7,0.0011]
[1772427736342,0.47116272,1972.1,1971.7,0.0011]
[1772427738497,1.74786102,1972.0,1971.7,0.0011]
[1772427739263,0.48011255,1972.0,1971.7,0.0011]
[1772427740272,1.74766819,1972.3,1971.7,0.48100466]
[1772427740605,4.77375151,1972.2,1971.7,0.48100466]
[1772427740764,1.74779,1972.2,1971.7,0.48100466]
[1772427741202,0.48011255,1972.1,1971.7,0.0011]
[1772427742573,1.74781911,1972.1,1971.8,0.0011]
[1772427745002,0.48011255,1972.3,1971.8,0.0011]
[1772427745223,1.26845874,1972.5,1971.8,0.48100466]
[1772427745401,3.50601231,1972.4,1971.8,0.48100466]
[1772427745602,0.48011255,1972.4,1971.8,0.48100466]
[1772427748207,1.7476472,1972.4,1971.8,1.74883492]
[1772427748402,3.02780656,1972.3,1971.8,1.74883492]
[1772427748607,3.02780656,1972.3,1971.9,0.47990466]
[1772427748808,1.26750576,1972.4,1971.9,0.47990466]
[1772427749014,1.74761831,1972.4,1971.9,0.47990466]
[1772427749218,3.02941854,1972.3,1971.9,0.47990466]
[1772427750412,4.29697587,1972.3,1971.9,0.47990466]
[1772427750613,1.7476387,1972.4,1971.9,1.74769962]
[1772427750793,3.02986681,1972.3,1971.9,1.74769962]
[1772427752002,3.02986681,1972.3,1971.9,0.47990466]
[1772427752195,3.02986681,1972.2,1971.9,1.74771223]
[1772427752403,1.74767354,1972.3,1971.9,0.47990466]
[1772427752720,3.0349012,1972.2,1971.9,1.74771693]
[1772427752922,3.0349012,1972.2,1971.9,0.47990466]
[1772427754206,3.0349012,1972.1,1971.9,0.47990466]
[1772427754520,1.74766944,1972.3,1971.9,0.47990466]
[1772427754722,3.03735575,1972.2,1971.9,0.47990466]
[1772427755022,3.03735575,1972.1,1971.9,0.47990466]
[1772427755258,1.74766944,1972.3,1971.9,0.47990466]
[1772427755424,3.0373837,1972.2,1971.9,0.47990466]
[1772427755719,3.0373837,1972.1,1971.9,1.7477149]
[1772427755919,0.48011255,1972.3,1971.9,1.7477149]
[1772427756123,3.0373837,1972.2,1971.9,1.7477149]
[1772427756325,3.0373837,1972.1,1971.9,1.7477149]
[1772427756625,1.74767145,1972.3,1971.9,0.47990466]
[1772427756794,3.03722994,1972.2,1971.9,0.47990466]
[1772427756993,3.03722994,1972.1,1971.9,0.47990466]
[1772427757222,1.74767145,1972.3,1971.9,0.47990466]
[1772427757425,3.03710056,1972.2,1971.9,0.47990466]
[1772427757720,3.03710056,1972.1,1971.9,0.47990466]
[1772427758023,1.74767145,1972.3,1971.9,0.47990466]
[1772427758219,3.03710056,1972.2,1971.9,0.47990466]
[1772427758530,3.03710056,1972.1,1971.9,0.47990466]
[1772427758716,1.74767145,1972.3,1971.9,1.7477162]
[1772427758912,3.03710386,1972.2,1971.9,1.7477162]
[1772427759097,3.03710386,1972.1,1971.9,1.7477162]
[1772427759300,1.2675589,1972.3,1971.9,1.7477162]
[1772427759597,3.51726362,1972.2,1971.9,0.47990466]
[1772427759806,3.03715107,1972.1,1971.9,0.47990466]
[1772427760008,3.03715107,1972.1,1971.9,1.74771274]
[1772427760209,3.03715107,1972.1,1971.9,0.47990466]
[1772427762429,3.03715107,1972.1,1971.8,1.26893578]
[1772427762430,0.48011255,1971.9,1971.8,0.0011]
[1772427762797,1.74782423,1972.1,1971.8,0.0011]
[1772427763131,3.03794453,1972.0,1971.8,0.0011]
[1772427764128,1.4708726,1972.4,1971.8,0.48100466]
[1772427764129,2.40063031,1972.4,1971.8,0.48100466]
[1772427764313,0.48011255,1972.4,1971.8,0.48100466]
[1772427764905,0.48011255,1972.4,1971.9,1.74771742]
[1772427765245,0.001,1972.5,1972.0,0.47990466]
[1772427765727,0.48011255,1972.4,1972.0,0.47990466]
[1772427768109,0.001,1972.5,1972.1,0.4874855]
[1772427768410,0.4603236,1972.5,1972.1,0.4874855]
[1772427770215,1.72777886,1972.5,1972.1,0.4874855]
[1772427770715,1.72777886,1972.5,1972.1,1.7551684]
[1772427770716,0.4603236,1972.5,1972.1,1.7551684]
[1772427770935,0.001,1972.5,1972.2,0.4874855]
[1772427772351,0.001,1972.5,1972.3,0.4874855]
[1772427776856,0.001,1972.5,1972.1,1.26764506]
[1772427777149,0.4603236,1972.5,1971.9,3.97338433]
[1772427777344,0.4593236,1972.4,1972.0,1.75522836]
[1772427777543,0.4593236,1972.4,1972.0,0.4874855]
[1772427777796,0.4593236,1972.4,1972.1,0.0011]
[1772427777929,0.4603236,1972.4,1972.1,0.0011]
[1772427778425,0.4603236,1972.4,1972.0,0.0011]
[1772427779653,0.4593236,1972.2,1972.0,0.0011]
[1772427780230,0.4593236,1972.2,1971.8,0.0011]
[1772427781759,1.26768419,1972.1,1971.8,0.0011]
[1772427782063,1.72700779,1972.1,1971.8,0.0011]
[1772427784066,0.4593236,1972.3,1971.8,0.4885855]
[1772427785072,0.001,1972.4,1971.8,0.4885855]
[1772427785249,1.7278202,1972.4,1971.8,0.4885855]
[1772427785851,1.7278202,1972.4,1971.9,1.75529826]
[1772427786370,0.4593236,1972.3,1971.9,0.4874855]
[1772427786961,0.001,1972.4,1971.9,0.4874855]
[1772427788667,0.001,1972.4,1972.0,1.75523397]
[1772427789167,0.001,1972.4,1972.1,0.4874855]
[1772427790966,0.001,1972.4,1972.1,1.75516644]
[1772427791370,0.001,1972.3,1972.1,1.75516644]
[1772427791573,0.001,1972.3,1972.1,1.75515465]
[1772427791955,0.001,1972.3,1972.1,0.4874855]
[1772427792155,0.001,1972.3,1972.1,1.75515709]
[1772427793379,0.001,1972.3,1972.2,0.4874855]
[1772427795446,0.001,1972.3,1972.2,1.75510541]